[Event "POL-chT 2 Liga 2019"]
[Site "Poronin"]
[Date "2019.09.14"]
[Round "8.38"]
[White "Lukasiewicz, Krzysztof"]
[Black "Pyda, Zbigniew"]
[Result "1-0"]
[ECO "D00"]
[WhiteElo "2254"]
[BlackElo "2322"]
[Annotator "NA"]
[PlyCount "151"]
[EventDate "2019.09.07"]
[EventType "team-tourn"]
[EventCountry "POL"]
[SourceTitle "playchess.com"]
[Source "ChessBase"]
[SourceQuality "1"]
[TimeControl "40/5400+30:1800+30"]

1. d4 {[%emt 0:00:00]} d5 {[%emt 0:00:00]} 2. Bf4 {[%emt 0:00:00]} Nf6 {[%emt 0:00:29]} 3. e3 {[%emt 0:00:00]} Bf5 {[%emt 0:00:48]} 4. c4 {[%emt 0:00:00]} c6 {[%emt 0:00:18]} 5. Nc3 {[%emt 0:01:12]} e6 {[%emt 0:02:32]} 6. Qb3 {[%emt 0:00:05]} b6 {[%emt 0:02:09]} 7. cxd5 {[%emt 0:13:41]} exd5 {[%emt 0:00:18]} 8. Nf3 {[%emt 0:00:33]} Be7 {[%emt 0:01:08]} 9. Be2 {[%emt 0:10:18]} O-O {[%emt 0:00:38]} 10. O-O {[%emt 0:00:24]} a5 {[%emt 0:08:01]} 11. Ne5 {[%emt 0:08:47]} Nfd7 {[%emt 0:01:20]} 12. Nxc6 {[%emt 0:00:33]} Nxc6 {[%emt 0:01:06]} 13. Qxd5 {[%emt 0:02:22]} Nxd4 {[%emt 0:00:24]} 14. Qxd4 {[%emt 0:02:11]} Bf6 {[%emt 0:02:59]} 15. Qd2 {[%emt 0:06:04]} Rc8 {[%emt 0:10:52]} 16. Rfd1 {[%emt 0:07:09]} Bxc3 {[%emt 0:08:08]} 17. bxc3 {[%emt 0:00:30]} Qf6 {[%emt 0:00:15]} 18. Rac1 {[%emt 0:10:08]} Nc5 {[%emt 0:05:12]} 19. Qe1 {[%emt 0:10:19]} Ne4 {[%emt 0:08:14]} 20. Rd4 {[%emt 0:00:49]} g5 {[%emt 0:10:22]} 21. Bg3 {[%emt 0:01:49]} Nxg3 {[%emt 0:00:50]} 22. hxg3 {[%emt 0:00:05]} Rc5 {[%emt 0:01:27]} 23. Qd2 {[%emt 0:03:55]} Rfc8 {[%emt 0:08:08]} 24. Rd6 {[%emt 0:00:32]} Be6 {[%emt 0:01:38]} 25. Ba6 {[%emt 0:02:12]} R8c6 {[%emt 0:04:18]} 26. Rxc6 {[%emt 0:03:00]} Rxc6 {[%emt 0:00:05]} 27. c4 {[%emt 0:00:08]} Bc8 {[%emt 0:05:26]} 28. Bxc8 {[%emt 0:02:21]} Rxc8 {[%emt 0:00:02]} 29. Qd4 {[%emt 0:01:50]} Qc6 {[%emt 0:01:27]} 30. e4 {[%emt 0:05:08]} a4 {[%emt 0:03:56]} 31. Kf1 {[%emt 0:02:40]} h6 {[%emt 0:01:17]} 32. Qd5 {[%emt 0:01:33]} Qc5 {[%emt 0:00:49]} 33. Qxc5 {[%emt 0:00:35]} Rxc5 {[%emt 0:00:22]} 34. Ke2 {[%emt 0:00:04]} b5 {[%emt 0:05:27]} 35. Kd3 {[%emt 0:00:06]} bxc4+ {[%emt 0:00:56]} 36. Rxc4 {[%emt 0:00:05]} Ra5 {[%emt 0:00:06]} 37. a3 {[%emt 0:03:09]} Ra8 {[%emt 0:00:27]} 38. e5 {[%emt 0:01:41]} Kg7 {[%emt 0:01:50]} 39. Ke4 {[%emt 0:00:28]} Kg6 {[%emt 0:01:51]} 40. Rc6+ {[%emt 0:00:00]} Kg7 {[%emt 0:00:00]} 41. Rc4 {[%emt 0:07:14]} Kg6 {[%emt 0:00:35]} 42. g4 {[%emt 0:01:14]} Rb8 {[%emt 0:05:35]} 43. Rxa4 {[%emt 0:02:06]} Rb2 {[%emt 0:00:30]} 44. Ra6+ {[%emt 0:01:32]} Kg7 {[%emt 0:01:26]} 45. Rf6 {[%emt 0:00:06]} Re2+ {[%emt 0:00:58]} 46. Kd5 {[%emt 0:00:07]} Rd2+ {[%emt 0:00:14]} 47. Kc5 {[%emt 0:00:22]} Re2 {[%emt 0:04:09]} 48. Kd6 {[%emt 0:01:03]} Re4 {[%emt 0:01:29]} 49. g3 {[%emt 0:00:56]} Ra4 {[%emt 0:02:25]} 50. Rf3 {[%emt 0:00:06]} Ra6+ {[%emt 0:01:05]} 51. Kd5 {[%emt 0:00:03]} Ra5+ {[%emt 0:00:15]} 52. Ke4 {[%emt 0:00:34]} Kg6 {[%emt 0:00:49]} 53. Rb3 {[%emt 0:01:36]} Ra4+ {[%emt 0:00:46]} 54. Ke3 {[%emt 0:00:16]} f6 {[%emt 0:05:10]} 55. Rb6 {[%emt 0:01:22]} Rxa3+ {[%emt 0:00:10]} 56. Ke4 {[%emt 0:00:19]} Ra4+ {[%emt 0:00:18]} 57. Kf3 {[%emt 0:00:16]} Ra3+ {[%emt 0:00:41]} 58. Kg2 {[%emt 0:00:06]} Rc3 {[%emt 0:02:12]} 59. Rxf6+ {[%emt 0:00:15]} Kg7 {[%emt 0:00:12]} 60. Rd6 {[%emt 0:02:34]} Ra3 {[%emt 0:00:34]} 61. f4 {[%emt 0:00:49]} Re3 {[%emt 0:01:50]} 62. Rd7+ {[%emt 0:00:16]} Kg8 {[%emt 0:00:18]} 63. Kf2 {[%emt 0:00:17]} Re4 {[%emt 0:00:08]} 64. Kf3 {[%emt 0:00:37]} Re1 {[%emt 0:00:18]} 65. Rd3 {[%emt 0:01:52]} Kf7 {[%emt 0:00:43]} 66. Re3 {[%emt 0:00:30]} Ra1 {[%emt 0:00:33]} 67. e6+ {[%emt 0:05:51]} Ke7 {[%emt 0:00:11]} 68. f5 {[%emt 0:00:07]} Ra8 {[%emt 0:00:18]} 69. Rd3 {[%emt 0:00:06]} Kf6 {[%emt 0:00:29]} 70. Ke4 {[%emt 0:01:14]} h5 {[%emt 0:01:57]} 71. Rd7 {[%emt 0:00:27]} Ra4+ {[%emt 0:00:24]} 72. Kd5 {[%emt 0:00:03]} Ra5+ {[%emt 0:00:20]} 73. Kd6 {[%emt 0:00:28]} Ra6+ {[%emt 0:00:16]} 74. Kc5 {[%emt 0:00:10]} hxg4 {[%emt 0:01:13]} 75. Rf7+ {[%emt 0:00:05]} Ke5 {[%emt 0:00:07]} 76. e7 {[%emt 0:00:04]} 1-0

[Event "POL-chT 2 Liga 2019"]
[Site "Poronin"]
[Date "2019.09.14"]
[Round "8.39"]
[White "Maka, Marcin"]
[Black "Jankowiak, Tomasz"]
[Result "1-0"]
[ECO "B25"]
[WhiteElo "2108"]
[BlackElo "2075"]
[Annotator "NA"]
[PlyCount "85"]
[EventDate "2019.09.07"]
[EventType "team-tourn"]
[EventCountry "POL"]
[SourceTitle "playchess.com"]
[Source "ChessBase"]
[SourceQuality "1"]
[TimeControl "40/5400+30:1800+30"]

1. e4 {[%emt 0:00:00]} c5 {[%emt 0:00:00]} 2. Nc3 {[%emt 0:00:00]} d6 {[%emt 0:00:00]} 3. g3 {[%emt 0:00:03]} Nc6 {[%emt 0:00:03]} 4. Bg2 {[%emt 0:00:09]} g6 {[%emt 0:00:48]} 5. d3 {[%emt 0:00:12]} Bg7 {[%emt 0:00:09]} 6. Nh3 {[%emt 0:01:29]} e6 {[%emt 0:07:52]} 7. Be3 {[%emt 0:01:27]} Nd4 {[%emt 0:00:50]} 8. O-O {[%emt 0:01:57]} Ne7 {[%emt 0:02:13]} 9. Qd2 {[%emt 0:00:24]} Qa5 {[%emt 0:03:57]} 10. Bh6 {[%emt 0:27:04]} O-O {[%emt 0:24:46]} 11. Nd5 {[%emt 0:04:20]} Qd8 {[%emt 0:02:56]} 12. Bxg7 {[%emt 0:01:13]} Kxg7 {[%emt 0:01:00]} 13. Ne3 {[%emt 0:00:32]} e5 {[%emt 0:01:30]} 14. f4 {[%emt 0:00:25]} f6 {[%emt 0:02:02]} 15. c3 {[%emt 0:15:49]} Ndc6 {[%emt 0:00:46]} 16. f5 {[%emt 0:00:20]} g5 {[%emt 0:09:57]} 17. g4 {[%emt 0:03:03]} h6 {[%emt 0:05:20]} 18. Nf2 {[%emt 0:01:11]} b5 {[%emt 0:00:55]} 19. Nh1 {[%emt 0:00:54]} Bd7 {[%emt 0:01:51]} 20. Ng3 {[%emt 0:00:13]} Be8 {[%emt 0:00:59]} 21. h4 {[%emt 0:03:14]} b4 {[%emt 0:11:17]} 22. Bf3 {[%emt 0:03:39]} Bf7 {[%emt 0:04:03]} 23. Nh5+ {[%emt 0:00:46]} Bxh5 {[%emt 0:00:13]} 24. gxh5 {[%emt 0:00:02]} Kh7 {[%emt 0:03:46]} 25. Kh1 {[%emt 0:01:56]} a5 {[%emt 0:01:34]} 26. Rg1 {[%emt 0:07:46]} a4 {[%emt 0:00:51]} 27. a3 {[%emt 0:00:46]} bxc3 {[%emt 0:02:38]} 28. bxc3 {[%emt 0:00:22]} Na5 {[%emt 0:00:17]} 29. Raf1 {[%emt 0:01:25]} Rb8 {[%emt 0:00:59]} 30. Rg2 {[%emt 0:02:58]} Rb3 {[%emt 0:01:05]} 31. Qc1 {[%emt 0:00:50]} Qb6 {[%emt 0:03:54]} 32. Ng4 {[%emt 0:02:32]} Qd8 {[%emt 0:05:20]} 33. Nxh6 {[%emt 0:03:14]} Kxh6 {[%emt 0:00:20]} 34. hxg5+ {[%emt 0:00:02]} Kg7 {[%emt 0:00:46]} 35. h6+ {[%emt 0:12:53]} Kh8 {[%emt 0:01:06]} 36. g6 {[%emt 0:00:08]} Rg8 {[%emt 0:01:16]} 37. g7+ {[%emt 0:00:17]} Kh7 {[%emt 0:00:01]} 38. Bh5 {[%emt 0:00:01]} Re8 {[%emt 0:00:56]} 39. Rfg1 {[%emt 0:02:01]} c4 {[%emt 0:00:36]} 40. Qd1 {[%emt 0:00:00]} cxd3 {[%emt 0:00:00]} 41. Qg4 {[%emt 0:05:34]} Kg8 {[%emt 0:03:20]} 42. h7+ {[%emt 0:00:52]} Kxh7 {[%emt 0:00:13]} 43. Bf7 {[%emt 0:00:05]} 1-0

[Event "POL-chT 2 Liga 2019"]
[Site "Poronin"]
[Date "2019.09.14"]
[Round "8.40"]
[White "Dryja, Szymon"]
[Black "Panas, Pawel"]
[Result "1/2-1/2"]
[ECO "D30"]
[WhiteElo "1854"]
[BlackElo "2165"]
[Annotator "NA"]
[PlyCount "72"]
[EventDate "2019.09.07"]
[EventType "team-tourn"]
[EventCountry "POL"]
[SourceTitle "playchess.com"]
[Source "ChessBase"]
[SourceQuality "1"]
[TimeControl "40/5400+30:1800+30"]

1. d4 {[%emt 0:00:00]} d5 {[%emt 0:00:11]} 2. c4 {[%emt 0:00:00]} e6 {[%emt 0:01:49]} 3. e3 {[%emt 0:00:14]} c6 {[%emt 0:01:00]} 4. Nf3 {[%emt 0:00:05]} Bd6 {[%emt 0:04:30]} 5. b3 {[%emt 0:00:41]} f5 {[%emt 0:01:20]} 6. Bb2 {[%emt 0:01:26]} Nf6 {[%emt 0:00:20]} 7. Bd3 {[%emt 0:00:25]} O-O {[%emt 0:01:22]} 8. Nbd2 {[%emt 0:00:26]} b6 {[%emt 0:02:07]} 9. Rc1 {[%emt 0:02:04]} Qe7 {[%emt 0:02:06]} 10. Qc2 {[%emt 0:02:10]} Bb7 {[%emt 0:01:29]} 11. O-O {[%emt 0:06:52]} a5 {[%emt 0:01:18]} 12. c5 {[%emt 0:02:33]} bxc5 {[%emt 0:03:14]} 13. dxc5 {[%emt 0:00:36]} Bc7 {[%emt 0:00:41]} 14. a3 {[%emt 0:00:04]} Ba6 {[%emt 0:10:15]} 15. Ne5 {[%emt 0:03:07]} Nfd7 {[%emt 0:02:56]} 16. Ndf3 {[%emt 0:00:47]} Bxd3 {[%emt 0:06:27]} 17. Qxd3 {[%emt 0:03:30]} Nxc5 {[%emt 0:11:20]} 18. Qc2 {[%emt 0:00:08]} Bd6 {[%emt 0:01:42]} 19. Bd4 {[%emt 0:08:07]} Ncd7 {[%emt 0:06:37]} 20. Nxc6 {[%emt 0:05:56]} Nxc6 {[%emt 0:00:31]} 21. Qxc6 {[%emt 0:00:07]} Bxa3 {[%emt 0:00:52]} 22. Rc2 {[%emt 0:00:31]} Bd6 {[%emt 0:03:15]} 23. Rfc1 {[%emt 0:02:51]} h6 {[%emt 0:03:26]} 24. Nh4 {[%emt 0:02:23]} Kh7 {[%emt 0:04:51]} 25. g3 {[%emt 0:02:41]} Rab8 {[%emt 0:03:55]} 26. Qa6 {[%emt 0:01:38]} e5 {[%emt 0:08:02]} 27. Ba7 {[%emt 0:05:58]} Rxb3 {[%emt 0:08:48]} 28. Rc8 {[%emt 0:05:06]} Rf6 {[%emt 0:05:39]} 29. Qxa5 {[%emt 0:02:06]} Qe6 {[%emt 0:01:50]} 30. Ra8 {[%emt 0:06:20]} Ra3 {[%emt 0:01:28]} 31. Qb5 {[%emt 0:00:52]} Nf8 {[%emt 0:01:21]} 32. Qb1 {[%emt 0:09:12]} Qd7 {[%emt 0:00:43]} 33. Qb6 {[%emt 0:06:07]} Be7 {[%emt 0:00:31]} 34. Qb8 {[%emt 0:02:05]} Bd6 {[%emt 0:00:26]} 35. Qb6 Be7 {[%emt 0:00:05]} 36. Qb8 {[%emt 0:02:28]} Bd6 {[%emt 0:00:51]} 1/2-1/2

[Event "POL-chT 2 Liga 2019"]
[Site "Poronin"]
[Date "2019.09.14"]
[Round "8.41"]
[White "Polkowski, Piotr"]
[Black "Statucki, Maciej"]
[Result "1/2-1/2"]
[ECO "B30"]
[WhiteElo "2109"]
[BlackElo "1754"]
[Annotator "NA"]
[PlyCount "83"]
[EventDate "2019.09.07"]
[EventType "team-tourn"]
[EventCountry "POL"]
[SourceTitle "playchess.com"]
[Source "ChessBase"]
[SourceQuality "1"]
[TimeControl "40/5400+30:1800+30"]

1. e4 {[%emt 0:00:00]} c5 {[%emt 0:00:00]} 2. Nf3 {[%emt 0:00:00]} Nc6 {[%emt 0:00:00]} 3. Bb5 {[%emt 0:00:00]} a6 {[%emt 0:03:33]} 4. Bxc6 {[%emt 0:00:27]} bxc6 {[%emt 0:00:01]} 5. O-O {[%emt 0:01:27]} Nf6 {[%emt 0:02:40]} 6. Re1 {[%emt 0:05:48]} g6 {[%emt 0:03:19]} 7. d3 {[%emt 0:01:16]} Bg7 {[%emt 0:04:05]} 8. Nc3 {[%emt 0:00:46]} O-O {[%emt 0:03:42]} 9. h3 {[%emt 0:01:12]} Rb8 {[%emt 0:02:42]} 10. Rb1 {[%emt 0:06:10]} d6 {[%emt 0:04:37]} 11. Be3 {[%emt 0:16:30]} e5 {[%emt 0:02:13]} 12. Qd2 {[%emt 0:00:33]} Nh5 {[%emt 0:06:10]} 13. g4 {[%emt 0:05:34]} f5 {[%emt 0:04:18]} 14. Bg5 {[%emt 0:04:14]} Nf6 {[%emt 0:01:27]} 15. Nh2 {[%emt 0:08:53]} fxg4 {[%emt 0:02:09]} 16. hxg4 {[%emt 0:01:27]} h6 {[%emt 0:04:32]} 17. Bxh6 {[%emt 0:06:32]} Nxg4 {[%emt 0:03:28]} 18. Nxg4 {[%emt 0:02:45]} Bxg4 {[%emt 0:06:59]} 19. Qg5 {[%emt 0:00:05]} Qf6 {[%emt 0:07:07]} 20. Qxf6 {[%emt 0:00:39]} Rxf6 {[%emt 0:00:06]} 21. Bg5 {[%emt 0:01:27]} Rf7 {[%emt 0:00:09]} 22. Re3 {[%emt 0:02:47]} Bf6 {[%emt 0:06:11]} 23. Bxf6 {[%emt 0:01:26]} Rxf6 {[%emt 0:00:01]} 24. Kg2 {[%emt 0:00:19]} Rbf8 {[%emt 0:01:27]} 25. Rf1 {[%emt 0:03:26]} Bf3+ {[%emt 0:00:30]} 26. Kg3 {[%emt 0:09:42]} g5 {[%emt 0:03:08]} 27. Ne2 {[%emt 0:00:21]} Kg7 {[%emt 0:00:37]} 28. Ng1 {[%emt 0:04:34]} g4 {[%emt 0:00:17]} 29. Rfe1 {[%emt 0:02:05]} a5 {[%emt 0:08:30]} 30. a4 {[%emt 0:00:10]} Kg6 {[%emt 0:02:00]} 31. Nxf3 {[%emt 0:01:51]} gxf3 {[%emt 0:00:31]} 32. Rh1 {[%emt 0:00:03]} Rf4 {[%emt 0:06:54]} 33. Rh4 {[%emt 0:00:15]} Kg5 {[%emt 0:00:25]} 34. Rh7 {[%emt 0:00:03]} Rg8 {[%emt 0:01:27]} 35. Kh3 {[%emt 0:00:48]} Kg6 {[%emt 0:06:21]} 36. Rh4 {[%emt 0:00:15]} Kg5 {[%emt 0:00:14]} 37. Rh7 {[%emt 0:00:35]} Kg6 {[%emt 0:01:46]} 38. Rh4 {[%emt 0:01:14]} Kg5 {[%emt 0:00:32]} 39. Rh7 {[%emt 0:00:12]} Rg6 {[%emt 0:00:53]} 40. Rh8 {[%emt 0:00:00]} Rf7 {[%emt 0:00:00]} 41. Rh4 {[%emt 0:03:09]} Rf4 {[%emt 0:05:36]} 42. Rh8 1/2-1/2

[Event "POL-chT 2 Liga 2019"]
[Site "Poronin"]
[Date "2019.09.14"]
[Round "8.42"]
[White "Czarniecka, Aleksandra"]
[Black "Fraczek, Weronika"]
[Result "1-0"]
[ECO "C60"]
[WhiteElo "2003"]
[BlackElo "1875"]
[Annotator "NA"]
[PlyCount "45"]
[EventDate "2019.09.07"]
[EventType "team-tourn"]
[EventCountry "POL"]
[SourceTitle "playchess.com"]
[Source "ChessBase"]
[SourceQuality "1"]
[TimeControl "40/5400+30:1800+30"]

1. e4 {[%emt 0:00:00]} e5 {[%emt 0:00:00]} 2. Nf3 {[%emt 0:00:00]} Nc6 {[%emt 0:00:00]} 3. Bb5 {[%emt 0:00:17]} g6 {[%emt 0:00:00]} 4. d4 {[%emt 0:00:44]} exd4 {[%emt 0:00:00]} 5. Bg5 {[%emt 0:00:09]} Be7 {[%emt 0:00:05]} 6. Bxe7 {[%emt 0:00:17]} Qxe7 {[%emt 0:00:08]} 7. Bxc6 {[%emt 0:01:04]} dxc6 {[%emt 0:00:15]} 8. Qxd4 {[%emt 0:00:57]} Nf6 {[%emt 0:00:10]} 9. Nc3 {[%emt 0:01:20]} O-O {[%emt 0:06:44]} 10. O-O-O {[%emt 0:05:30]} c5 {[%emt 0:12:20]} 11. Qe3 {[%emt 0:16:15]} c6 {[%emt 0:08:52]} 12. h3 {[%emt 0:19:32]} Re8 {[%emt 0:05:49]} 13. e5 {[%emt 0:02:35]} Nd7 {[%emt 0:06:45]} 14. Ne4 {[%emt 0:04:40]} f5 {[%emt 0:10:34]} 15. exf6 {[%emt 0:02:30]} Qf8 {[%emt 0:13:00]} 16. Qb3+ {[%emt 0:04:08]} Kh8 {[%emt 0:01:20]} 17. Nd6 {[%emt 0:00:20]} Nxf6 {[%emt 0:08:03]} 18. Nxe8 {[%emt 0:00:06]} Qxe8 {[%emt 0:00:37]} 19. Rhe1 {[%emt 0:02:07]} Qf8 {[%emt 0:00:28]} 20. Re2 {[%emt 0:01:12]} b5 {[%emt 0:03:35]} 21. Ne5 {[%emt 0:01:45]} a5 {[%emt 0:05:13]} 22. Rd8 {[%emt 0:01:21]} Ne8 {[%emt 0:00:59]} 23. Rxe8 {[%emt 0:00:17]} 1-0

[Event "POL-chT 2 Liga 2019"]
[Site "Poronin"]
[Date "2019.09.14"]
[Round "8.43"]
[White "Chojnacki, Krzysztof"]
[Black "Zaskalski, Arkadiusz"]
[Result "1-0"]
[ECO "B33"]
[WhiteElo "2362"]
[BlackElo "2168"]
[Annotator "NA"]
[PlyCount "59"]
[EventDate "2019.09.07"]
[EventType "team-tourn"]
[EventCountry "POL"]
[SourceTitle "playchess.com"]
[Source "ChessBase"]
[SourceQuality "1"]
[TimeControl "40/5400+30:1800+30"]

1. e4 {[%emt 0:00:00]} c5 {[%emt 0:00:00]} 2. Nf3 {[%emt 0:00:00]} Nc6 {[%emt 0:00:00]} 3. d4 {[%emt 0:00:00]} cxd4 {[%emt 0:00:11]} 4. Nxd4 {[%emt 0:00:00]} Nf6 {[%emt 0:00:35]} 5. Nc3 {[%emt 0:00:09]} g6 {[%emt 0:00:15]} 6. Nxc6 {[%emt 0:01:51]} bxc6 {[%emt 0:00:23]} 7. e5 {[%emt 0:00:17]} Ng8 {[%emt 0:02:00]} 8. Bc4 {[%emt 0:00:41]} Bg7 {[%emt 0:02:04]} 9. Qf3 {[%emt 0:00:54]} f5 {[%emt 0:01:55]} 10. Bf4 {[%emt 0:01:57]} e6 {[%emt 0:05:49]} 11. O-O-O {[%emt 0:01:58]} Qc7 {[%emt 0:12:42]} 12. h4 {[%emt 0:02:58]} Ne7 {[%emt 0:11:28]} 13. Qg3 {[%emt 0:03:32]} Bb7 {[%emt 0:10:32]} 14. Rd3 {[%emt 0:11:11]} O-O-O {[%emt 0:04:42]} 15. Rhd1 {[%emt 0:05:23]} Nd5 {[%emt 0:17:45]} 16. Bxd5 {[%emt 0:12:06]} exd5 {[%emt 0:00:25]} 17. h5 {[%emt 0:00:23]} Rhg8 {[%emt 0:02:34]} 18. h6 {[%emt 0:02:33]} Bf8 {[%emt 0:02:11]} 19. e6 {[%emt 0:01:00]} d6 {[%emt 0:00:51]} 20. Qe3 {[%emt 0:05:06]} Kb8 {[%emt 0:01:56]} 21. Na4 {[%emt 0:00:46]} Be7 {[%emt 0:03:35]} 22. Rb3 {[%emt 0:04:40]} Ka8 {[%emt 0:04:22]} 23. Ra3 {[%emt 0:03:04]} c5 {[%emt 0:04:16]} 24. Qb3 {[%emt 0:01:11]} a6 {[%emt 0:06:40]} 25. Rxd5 {[%emt 0:07:21]} Bxd5 {[%emt 0:04:29]} 26. Nb6+ {[%emt 0:01:22]} Ka7 {[%emt 0:00:05]} 27. Nxd5 {[%emt 0:00:21]} Qb7 {[%emt 0:00:55]} 28. Qxb7+ {[%emt 0:00:32]} Kxb7 {[%emt 0:00:04]} 29. Rb3+ {[%emt 0:00:10]} Ka8 {[%emt 0:00:20]} 30. Nxe7 {[%emt 0:00:36]} 1-0

[Event "POL-chT 2 Liga 2019"]
[Site "Poronin"]
[Date "2019.09.14"]
[Round "8.44"]
[White "Markiewicz, Jerzy"]
[Black "Raczynski, Krzysztof"]
[Result "1/2-1/2"]
[ECO "B51"]
[WhiteElo "2156"]
[BlackElo "2244"]
[Annotator "NA"]
[PlyCount "54"]
[EventDate "2019.09.07"]
[EventType "team-tourn"]
[EventCountry "POL"]
[SourceTitle "playchess.com"]
[Source "ChessBase"]
[SourceQuality "1"]
[TimeControl "40/5400+30:1800+30"]

1. e4 {[%emt 0:00:00]} c5 {[%emt 0:00:00]} 2. Nf3 {[%emt 0:00:00]} d6 {[%emt 0:00:00]} 3. Bb5+ {[%emt 0:00:34]} Nd7 {[%emt 0:01:03]} 4. c3 {[%emt 0:01:16]} Ngf6 {[%emt 0:01:05]} 5. Qe2 {[%emt 0:00:09]} a6 {[%emt 0:02:24]} 6. Ba4 {[%emt 0:00:53]} b5 {[%emt 0:05:27]} 7. Bc2 {[%emt 0:00:11]} e5 {[%emt 0:01:42]} 8. O-O {[%emt 0:00:25]} Be7 {[%emt 0:00:48]} 9. a4 {[%emt 0:00:46]} b4 {[%emt 0:05:33]} 10. a5 {[%emt 0:01:44]} O-O {[%emt 0:04:05]} 11. d4 {[%emt 0:00:20]} Re8 {[%emt 0:03:41]} 12. dxc5 {[%emt 0:06:52]} Nxc5 {[%emt 0:12:00]} 13. cxb4 {[%emt 0:01:39]} Ne6 {[%emt 0:00:11]} 14. Rd1 {[%emt 0:00:29]} Bd7 {[%emt 0:02:18]} 15. Nc3 {[%emt 0:10:06]} Qb8 {[%emt 0:01:21]} 16. Ba4 {[%emt 0:04:14]} Qxb4 {[%emt 0:05:13]} 17. Nxe5 {[%emt 0:27:56]} dxe5 {[%emt 0:05:32]} 18. Bxd7 {[%emt 0:00:06]} Nd4 {[%emt 0:05:05]} 19. Rxd4 {[%emt 0:00:14]} exd4 {[%emt 0:00:29]} 20. Bxe8 {[%emt 0:01:25]} dxc3 {[%emt 0:09:51]} 21. bxc3 {[%emt 0:03:08]} Qxc3 {[%emt 0:02:03]} 22. Bb2 {[%emt 0:00:42]} Qb4 {[%emt 0:02:46]} 23. Bc6 {[%emt 0:05:34]} Rd8 {[%emt 0:03:17]} 24. Bxf6 {[%emt 0:16:09]} Bxf6 {[%emt 0:05:22]} 25. Rd1 {[%emt 0:02:16]} Rxd1+ {[%emt 0:02:20]} 26. Qxd1 {[%emt 0:00:13]} Qxa5 {[%emt 0:00:25]} 27. g3 {[%emt 0:01:14]} Qa1 {[%emt 0:01:41]} 1/2-1/2

[Event "POL-chT 2 Liga 2019"]
[Site "Poronin"]
[Date "2019.09.14"]
[Round "8.45"]
[White "Bardeli, Lukasz"]
[Black "Augustyn, Sebastian"]
[Result "1-0"]
[ECO "A06"]
[WhiteElo "2144"]
[BlackElo "2171"]
[Annotator "NA"]
[PlyCount "115"]
[EventDate "2019.09.07"]
[EventType "team-tourn"]
[EventCountry "POL"]
[SourceTitle "playchess.com"]
[Source "ChessBase"]
[SourceQuality "1"]
[TimeControl "40/5400+30:1800+30"]

1. Nf3 {[%emt 0:00:00]} d5 {[%emt 0:00:46]} 2. g3 {[%emt 0:00:38]} Nf6 {[%emt 0:00:50]} 3. Bg2 {[%emt 0:00:07]} e6 {[%emt 0:06:05]} 4. O-O {[%emt 0:01:50]} Be7 {[%emt 0:00:18]} 5. c4 {[%emt 0:01:21]} O-O {[%emt 0:02:58]} 6. b3 {[%emt 0:00:06]} c5 {[%emt 0:02:25]} 7. Bb2 {[%emt 0:01:37]} Nc6 {[%emt 0:00:30]} 8. cxd5 {[%emt 0:00:55]} Nxd5 {[%emt 0:01:13]} 9. Nc3 {[%emt 0:00:09]} Bf6 {[%emt 0:18:21]} 10. Qc2 {[%emt 0:00:14]} b6 {[%emt 0:10:47]} 11. Nxd5 {[%emt 0:04:00]} exd5 {[%emt 0:00:45]} 12. d4 {[%emt 0:04:52]} Nb4 {[%emt 0:07:54]} 13. Qd2 {[%emt 0:04:24]} Bb7 {[%emt 0:02:32]} 14. Rfd1 {[%emt 0:07:08]} Qe7 {[%emt 0:04:51]} 15. dxc5 {[%emt 0:06:14]} bxc5 {[%emt 0:02:54]} 16. Bxf6 {[%emt 0:00:11]} Qxf6 {[%emt 0:00:11]} 17. Rac1 {[%emt 0:00:20]} Rac8 {[%emt 0:03:11]} 18. a3 {[%emt 0:01:56]} Na6 {[%emt 0:00:43]} 19. Qg5 {[%emt 0:02:37]} Qb6 {[%emt 0:07:16]} 20. Nh4 {[%emt 0:02:55]} h6 {[%emt 0:07:26]} 21. Qg4 {[%emt 0:04:03]} Kh7 {[%emt 0:12:26]} 22. Bxd5 {[%emt 0:08:28]} Bxd5 {[%emt 0:00:43]} 23. Qf5+ {[%emt 0:00:08]} Kg8 {[%emt 0:02:13]} 24. Qxd5 {[%emt 0:00:19]} Rcd8 {[%emt 0:02:29]} 25. Qc4 {[%emt 0:01:26]} Rfe8 {[%emt 0:00:57]} 26. Nf5 {[%emt 0:03:51]} Qf6 {[%emt 0:00:43]} 27. Ne3 {[%emt 0:04:32]} Rd6 {[%emt 0:01:25]} 28. Rxd6 {[%emt 0:00:44]} Qxd6 {[%emt 0:00:01]} 29. Rd1 {[%emt 0:00:19]} Qc6 {[%emt 0:00:30]} 30. b4 {[%emt 0:00:46]} Qa4 {[%emt 0:00:25]} 31. Rd6 {[%emt 0:04:45]} Nc7 {[%emt 0:01:07]} 32. Qxc5 {[%emt 0:01:14]} Ne6 {[%emt 0:00:26]} 33. Qc6 {[%emt 0:00:32]} Qxc6 {[%emt 0:00:31]} 34. Rxc6 {[%emt 0:00:03]} Nd4 {[%emt 0:00:27]} 35. Ra6 {[%emt 0:01:56]} Re7 {[%emt 0:00:11]} 36. Kf1 {[%emt 0:00:42]} Kf8 {[%emt 0:00:01]} 37. Nd5 {[%emt 0:01:51]} Rd7 {[%emt 0:00:27]} 38. Nf4 Rb7 {[%emt 0:00:40]} 39. e3 {[%emt 0:03:01]} Nf3 {[%emt 0:00:54]} 40. h4 {[%emt 0:00:00]} Ke8 {[%emt 0:00:00]} 41. Ke2 {[%emt 0:01:55]} Ne5 {[%emt 0:00:55]} 42. Nd3 {[%emt 0:02:06]} Nc4 {[%emt 0:00:49]} 43. Nc5 {[%emt 0:02:50]} Rc7 {[%emt 0:00:27]} 44. e4 {[%emt 0:00:45]} Kd8 {[%emt 0:01:33]} 45. f4 {[%emt 0:00:26]} Kc8 {[%emt 0:01:40]} 46. Kd3 {[%emt 0:00:38]} Nb6 {[%emt 0:00:20]} 47. Kd4 {[%emt 0:00:48]} Re7 {[%emt 0:00:35]} 48. e5 {[%emt 0:01:05]} Kb8 {[%emt 0:00:29]} 49. a4 {[%emt 0:01:57]} Re8 {[%emt 0:00:07]} 50. Ne4 {[%emt 0:02:44]} Re7 {[%emt 0:00:54]} 51. Nd6 {[%emt 0:00:57]} f6 {[%emt 0:00:49]} 52. a5 {[%emt 0:01:59]} fxe5+ {[%emt 0:00:17]} 53. fxe5 {[%emt 0:00:11]} Nd7 {[%emt 0:00:53]} 54. Rc6 {[%emt 0:00:05]} a6 {[%emt 0:01:19]} 55. Rc8+ {[%emt 0:00:09]} Ka7 {[%emt 0:00:04]} 56. Rc7+ {[%emt 0:00:06]} Kb8 {[%emt 0:00:03]} 57. Rb7+ {[%emt 0:00:08]} Ka8 {[%emt 0:00:01]} 58. e6 {[%emt 0:00:09]} 1-0